[Event "Live Chess"]
[Site "Chess.com"]
[Date "2023.05.21"]
[Round "-"]
[White "gmnorfolk"]
[Black "McSlash1"]
[Result "0-1"]
[WhiteElo "2104"]
[BlackElo "2013"]
[TimeControl "300"]
[EndTime "4:19:11 PDT"]
[Termination "McSlash1 won by checkmate"]

1. d4 {[%clk 0:04:57.5]} 1... Nf6 {[%clk 0:04:59.1]} 2. c4 {[%clk 0:04:55.9]}
2... g6 {[%clk 0:04:58.2]} 3. Nc3 {[%clk 0:04:53]} 3... d5 {[%clk 0:04:57.5]} 4.
cxd5 {[%clk 0:04:50.2]} 4... Nxd5 {[%clk 0:04:57.4]} 5. e4 {[%clk 0:04:49.1]}
5... Nxc3 {[%clk 0:04:57.1]} 6. bxc3 {[%clk 0:04:47.9]} 6... Bg7 {[%clk
0:04:57]} 7. Bc4 {[%clk 0:04:46.7]} 7... O-O {[%clk 0:04:56.4]} 8. Ne2 {[%clk
0:04:46.1]} 8... c5 {[%clk 0:04:55.1]} 9. Be3 {[%clk 0:04:45.7]} 9... cxd4
{[%clk 0:04:54.5]} 10. cxd4 {[%clk 0:04:44.3]} 10... Nc6 {[%clk 0:04:54.4]} 11.
O-O {[%clk 0:04:42.3]} 11... Na5 {[%clk 0:04:48.5]} 12. Bd3 {[%clk 0:04:39.7]}
12... Be6 {[%clk 0:04:46.9]} 13. Rc1 {[%clk 0:04:30.7]} 13... Bxa2 {[%clk
0:04:43.1]} 14. Qa4 {[%clk 0:04:28.9]} 14... Bb3 {[%clk 0:04:37.2]} 15. Qa3
{[%clk 0:04:24.5]} 15... Be6 {[%clk 0:04:34.1]} 16. d5 {[%clk 0:04:20.9]} 16...
Bd7 {[%clk 0:04:31.7]} 17. Rfd1 {[%clk 0:04:18.7]} 17... b6 {[%clk 0:04:30.9]}
18. Nd4 {[%clk 0:04:16.2]} 18... Rc8 {[%clk 0:04:30.2]} 19. Ba6 {[%clk
0:04:12.9]} 19... Rxc1 {[%clk 0:04:28.4]} 20. Rxc1 {[%clk 0:04:09.8]} 20... Qb8
{[%clk 0:04:24.5]} 21. Qxe7 {[%clk 0:04:02]} 21... Bc8 {[%clk 0:04:13.6]} 22.
Bxc8 {[%clk 0:03:46.6]} 22... Rxc8 {[%clk 0:04:13.5]} 23. Rxc8+ {[%clk
0:03:43.4]} 23... Qxc8 {[%clk 0:04:13.4]} 24. Nc6 {[%clk 0:03:39.3]} 24... Nxc6
{[%clk 0:04:07.2]} 25. dxc6 {[%clk 0:03:36.2]} 25... Qxc6 {[%clk 0:04:03.5]} 26.
Qd8+ {[%clk 0:03:34.6]} 26... Bf8 {[%clk 0:04:01.5]} 27. Bh6 {[%clk 0:03:29.5]}
27... Qd6 {[%clk 0:03:57.4]} 28. Qa8 {[%clk 0:03:25.5]} 28... Qd1# {[%clk
0:03:55.9]} 0-1

[Event "Live Chess"]
[Site "Chess.com"]
[Date "2023.05.21"]
[Round "-"]
[White "Bunny55"]
[Black "mikeybaby1986"]
[Result "1-0"]
[WhiteElo "1002"]
[BlackElo "1256"]
[TimeControl "300"]
[EndTime "4:19:14 PDT"]
[Termination "Bunny55 won by checkmate"]

1. e4 {[%clk 0:04:57.2]} 1... e5 {[%clk 0:04:58.9]} 2. Nf3 {[%clk 0:04:56.2]}
2... Nc6 {[%clk 0:04:57]} 3. Bb5 {[%clk 0:04:54.8]} 3... a6 {[%clk 0:04:50.3]}
4. Ba4 {[%clk 0:04:53.6]} 4... b5 {[%clk 0:04:48.7]} 5. Bb3 {[%clk 0:04:52.5]}
5... Nf6 {[%clk 0:04:39.8]} 6. d3 {[%clk 0:04:50.7]} 6... Bc5 {[%clk 0:04:35.5]}
7. O-O {[%clk 0:04:48.4]} 7... O-O {[%clk 0:04:31.2]} 8. h3 {[%clk 0:04:46.7]}
8... d5 {[%clk 0:04:24.9]} 9. exd5 {[%clk 0:04:44.5]} 9... Nxd5 {[%clk
0:04:23.4]} 10. Re1 {[%clk 0:04:37.6]} 10... Re8 {[%clk 0:04:10.5]} 11. c4
{[%clk 0:04:35.1]} 11... bxc4 {[%clk 0:03:53.8]} 12. Bxc4 {[%clk 0:04:30.5]}
12... Be6 {[%clk 0:03:25.7]} 13. Bg5 {[%clk 0:04:27.6]} 13... Qd7 {[%clk
0:03:11.7]} 14. Nc3 {[%clk 0:04:21.3]} 14... Nxc3 {[%clk 0:02:51.6]} 15. bxc3
{[%clk 0:04:19.1]} 15... Bxc4 {[%clk 0:02:48]} 16. dxc4 {[%clk 0:04:17.7]} 16...
Qxd1 {[%clk 0:02:40.4]} 17. Raxd1 {[%clk 0:04:15.2]} 17... f6 {[%clk 0:02:37.8]}
18. Bh4 {[%clk 0:04:10.7]} 18... Na5 {[%clk 0:02:17.5]} 19. Rd7 {[%clk
0:04:02.1]} 19... Bd6 {[%clk 0:02:06.1]} 20. c5 {[%clk 0:03:52.5]} 20... Bxc5
{[%clk 0:01:56.3]} 21. Rxc7 {[%clk 0:03:49.8]} 21... Rac8 {[%clk 0:01:43.9]} 22.
Rxc8 {[%clk 0:03:46.9]} 22... Rxc8 {[%clk 0:01:42.2]} 23. Nd2 {[%clk 0:03:38.9]}
23... Rb8 {[%clk 0:01:33.2]} 24. Ne4 {[%clk 0:03:36.9]} 24... Ba3 {[%clk
0:01:25.6]} 25. Ng3 {[%clk 0:03:21.4]} 25... Nc4 {[%clk 0:01:19]} 26. Nf5 {[%clk
0:03:17.1]} 26... Rb2 {[%clk 0:01:02]} 27. Rd1 {[%clk 0:03:04.6]} 27... Rd2
{[%clk 0:00:48.1]} 28. Rb1 {[%clk 0:02:59.7]} 28... Bb2 {[%clk 0:00:40]} 29.
Ne7+ {[%clk 0:02:43]} 29... Kf7 {[%clk 0:00:38.2]} 30. Nf5 {[%clk 0:02:34]}
30... Bxc3 {[%clk 0:00:22.1]} 31. Rb7+ {[%clk 0:02:30.3]} 31... Kg6 {[%clk
0:00:20]} 32. g4 {[%clk 0:02:23.5]} 32... Rxa2 {[%clk 0:00:15.6]} 33. Rxg7#
{[%clk 0:02:21.8]} 1-0

[Event "Live Chess"]
[Site "Chess.com"]
[Date "2023.05.21"]
[Round "-"]
[White "ranvir123"]
[Black "zdanevych"]
[Result "0-1"]
[WhiteElo "963"]
[BlackElo "1541"]
[TimeControl "300"]
[EndTime "4:19:32 PDT"]
[Termination "zdanevych won by resignation"]

1. e4 {[%clk 0:04:58.3]} 1... c5 {[%clk 0:04:58.6]} 2. Nf3 {[%clk 0:04:57]} 2...
e6 {[%clk 0:04:57.8]} 3. d4 {[%clk 0:04:56.3]} 3... d5 {[%clk 0:04:57]} 4. exd5
{[%clk 0:04:53.6]} 4... exd5 {[%clk 0:04:56.1]} 5. Qe2+ {[%clk 0:04:52.1]} 5...
Be6 {[%clk 0:04:54.1]} 6. Nc3 {[%clk 0:04:48.3]} 6... Nf6 {[%clk 0:04:48.9]} 7.
Bg5 {[%clk 0:04:46.7]} 7... Be7 {[%clk 0:04:47.5]} 8. O-O-O {[%clk 0:04:42]}
8... O-O {[%clk 0:04:46.2]} 9. Re1 {[%clk 0:04:38.4]} 9... c4 {[%clk 0:04:43.7]}
10. Bxf6 {[%clk 0:04:19.8]} 10... Bxf6 {[%clk 0:04:41.7]} 11. Ne5 {[%clk
0:04:18.8]} 11... Nc6 {[%clk 0:04:37.3]} 12. Nxc6 {[%clk 0:04:16.3]} 12... bxc6
{[%clk 0:04:37.2]} 13. g3 {[%clk 0:04:10.3]} 13... Bxd4 {[%clk 0:04:35.7]} 14.
Rd1 {[%clk 0:04:02.5]} 14... Bxc3 {[%clk 0:04:30]} 15. bxc3 {[%clk 0:04:01.1]}
15... Qa5 {[%clk 0:04:19.4]} 16. Kd2 {[%clk 0:03:56.4]} 16... Qxa2 {[%clk
0:04:12.9]} 17. Bg2 {[%clk 0:03:53.8]} 17... Qa3 {[%clk 0:04:04.4]} 18. Ra1
{[%clk 0:03:45.7]} 18... Qe7 {[%clk 0:04:03.4]} 19. f4 {[%clk 0:03:34.2]} 19...
Rfe8 {[%clk 0:03:52.3]} 20. Rhe1 {[%clk 0:03:32]} 20... Qd7 {[%clk 0:03:42.5]}
21. f5 {[%clk 0:03:28.1]} 21... Bxf5 {[%clk 0:03:39.5]} 0-1

[Event "Live Chess"]
[Site "Chess.com"]
[Date "2023.05.21"]
[Round "-"]
[White "Ian-Morley"]
[Black "TheSmoulderingMaster"]
[Result "0-1"]
[WhiteElo "1051"]
[BlackElo "1653"]
[TimeControl "300"]
[EndTime "4:19:42 PDT"]
[Termination "TheSmoulderingMaster won by resignation"]

1. e4 {[%clk 0:04:57.6]} 1... c5 {[%clk 0:04:58.9]} 2. Nf3 {[%clk 0:04:56.2]}
2... d6 {[%clk 0:04:58.1]} 3. Bb5+ {[%clk 0:04:55.2]} 3... Nd7 {[%clk
0:04:56.9]} 4. Bxd7+ {[%clk 0:04:54]} 4... Bxd7 {[%clk 0:04:55.9]} 5. O-O {[%clk
0:04:53.6]} 5... Bc6 {[%clk 0:04:54.5]} 6. Re1 {[%clk 0:04:53.3]} 6... Nf6
{[%clk 0:04:52.7]} 7. c3 {[%clk 0:04:52.9]} 7... g6 {[%clk 0:04:51.5]} 8. d4
{[%clk 0:04:52.1]} 8... cxd4 {[%clk 0:04:50.3]} 9. cxd4 {[%clk 0:03:53.2]} 9...
Bxe4 {[%clk 0:04:47.9]} 10. Ng5 {[%clk 0:03:38.8]} 10... Bxb1 {[%clk 0:04:41.9]}
11. Rxb1 {[%clk 0:03:36.7]} 11... Bg7 {[%clk 0:04:40.2]} 12. Qa4+ {[%clk
0:03:35.3]} 12... Qd7 {[%clk 0:04:38.4]} 13. Qxd7+ {[%clk 0:03:33.9]} 13... Nxd7
{[%clk 0:04:35.4]} 14. d5 {[%clk 0:03:28.1]} 14... O-O {[%clk 0:04:33.8]} 15. b3
{[%clk 0:03:27.5]} 15... Nb6 {[%clk 0:04:29.7]} 16. Bb2 {[%clk 0:03:26.2]} 16...
Bxb2 {[%clk 0:04:25.5]} 17. Rxb2 {[%clk 0:03:25.3]} 17... Nxd5 {[%clk
0:04:25.4]} 18. Rd1 {[%clk 0:03:22]} 18... Nf4 {[%clk 0:04:18.9]} 19. g3 {[%clk
0:03:19.1]} 19... Ne6 {[%clk 0:04:15]} 20. Nxe6 {[%clk 0:03:17.9]} 20... fxe6
{[%clk 0:04:14.3]} 21. Re1 {[%clk 0:03:17.6]} 21... Rf6 {[%clk 0:04:12.5]} 22.
f4 {[%clk 0:03:16.8]} 22... Raf8 {[%clk 0:04:10.2]} 23. Kg2 {[%clk 0:03:15.1]}
23... Kg7 {[%clk 0:04:02.9]} 24. b4 {[%clk 0:03:14]} 24... d5 {[%clk 0:04:01.5]}
25. a4 {[%clk 0:03:13.5]} 25... Rf5 {[%clk 0:03:58.9]} 26. Re5 {[%clk
0:03:10.5]} 26... Rxe5 {[%clk 0:03:57.4]} 27. fxe5 {[%clk 0:03:09.6]} 27... Rf5
{[%clk 0:03:56.1]} 28. Re2 {[%clk 0:03:07.7]} 28... g5 {[%clk 0:03:54.5]} 29. g4
{[%clk 0:03:06.2]} 29... Rf4 {[%clk 0:03:51.7]} 30. Kg3 {[%clk 0:03:04.9]} 30...
Rxb4 {[%clk 0:03:50.1]} 31. a5 {[%clk 0:03:03.8]} 31... Ra4 {[%clk 0:03:47]} 32.
h4 {[%clk 0:03:03.2]} 32... gxh4+ {[%clk 0:03:44.5]} 33. Kxh4 {[%clk 0:03:02.5]}
33... Rxa5 {[%clk 0:03:43.9]} 34. Rf2 {[%clk 0:03:01.8]} 34... Ra4 {[%clk
0:03:40.9]} 35. Rb2 {[%clk 0:02:59.3]} 35... b6 {[%clk 0:03:39.1]} 36. Rc2
{[%clk 0:02:58.7]} 36... Rc4 {[%clk 0:03:35]} 37. Ra2 {[%clk 0:02:57.6]} 37...
a5 {[%clk 0:03:33]} 38. Rb2 {[%clk 0:02:57.1]} 38... Rb4 {[%clk 0:03:30.5]} 39.
Rc2 {[%clk 0:02:56.2]} 39... a4 {[%clk 0:03:25.4]} 40. Rc7 {[%clk 0:02:54.7]}
40... Kf7 {[%clk 0:03:24.1]} 41. Kh5 {[%clk 0:02:52.6]} 41... a3 {[%clk
0:03:22.9]} 42. g5 {[%clk 0:02:51.7]} 42... b5 {[%clk 0:03:18.1]} 43. Rc8 {[%clk
0:02:47.1]} 43... a2 {[%clk 0:03:15.3]} 44. Ra8 {[%clk 0:02:46.1]} 44... Ra4
{[%clk 0:03:14.5]} 45. Rh8 {[%clk 0:02:40.9]} 45... Kg7 {[%clk 0:03:10.7]} 46.
g6 {[%clk 0:02:33.4]} 46... Kxh8 {[%clk 0:03:07.8]} 47. Kh6 {[%clk 0:02:32.4]}
47... hxg6 {[%clk 0:03:06.5]} 48. Kxg6 {[%clk 0:02:31.1]} 48... a1=Q {[%clk
0:03:02.3]} 49. Kf7 {[%clk 0:02:30.6]} 49... Qxe5 {[%clk 0:02:58.5]} 50. Kxe7
{[%clk 0:02:29.4]} 50... Ra7+ {[%clk 0:02:57.2]} 0-1

[Event "Live Chess"]
[Site "Chess.com"]
[Date "2023.05.21"]
[Round "-"]
[White "Twickenham2014"]
[Black "RoaringKnights"]
[Result "1-0"]
[WhiteElo "2281"]
[BlackElo "1076"]
[TimeControl "300"]
[EndTime "4:19:47 PDT"]
[Termination "Twickenham2014 won by checkmate"]

1. e4 {[%clk 0:04:57.5]} 1... e5 {[%clk 0:04:58.7]} 2. Nf3 {[%clk 0:04:54.7]}
2... Nc6 {[%clk 0:04:57.3]} 3. Bb5 {[%clk 0:04:50.7]} 3... a6 {[%clk 0:04:53.9]}
4. Ba4 {[%clk 0:04:32.3]} 4... Bc5 {[%clk 0:04:51.7]} 5. O-O {[%clk 0:04:29.9]}
5... Nf6 {[%clk 0:04:49.9]} 6. Re1 {[%clk 0:04:13.5]} 6... O-O {[%clk
0:04:47.7]} 7. c3 {[%clk 0:04:09]} 7... d5 {[%clk 0:04:44.4]} 8. exd5 {[%clk
0:04:02.7]} 8... Qxd5 {[%clk 0:04:41.2]} 9. Bb3 {[%clk 0:04:00.9]} 9... Qd8
{[%clk 0:04:34.9]} 10. d3 {[%clk 0:03:44.8]} 10... Ng4 {[%clk 0:04:25.1]} 11.
Be3 {[%clk 0:02:59.3]} 11... Bxe3 {[%clk 0:04:19.3]} 12. fxe3 {[%clk 0:02:59.2]}
12... Nf6 {[%clk 0:04:13.8]} 13. d4 {[%clk 0:02:47.5]} 13... exd4 {[%clk
0:04:11.7]} 14. exd4 {[%clk 0:02:46.6]} 14... Bg4 {[%clk 0:04:08.8]} 15. Nbd2
{[%clk 0:02:42.2]} 15... b5 {[%clk 0:03:47.7]} 16. h3 {[%clk 0:02:18.7]} 16...
Bh5 {[%clk 0:03:44]} 17. Ne4 {[%clk 0:01:58.4]} 17... Nxe4 {[%clk 0:03:39.1]}
18. Rxe4 {[%clk 0:01:58.3]} 18... Re8 {[%clk 0:03:33]} 19. Qe2 {[%clk
0:01:47.2]} 19... Rxe4 {[%clk 0:03:26.7]} 20. Qxe4 {[%clk 0:01:47.1]} 20... h6
{[%clk 0:03:22.3]} 21. Qxc6 {[%clk 0:01:44]} 21... Bxf3 {[%clk 0:03:18]} 22.
Qxf3 {[%clk 0:01:41.8]} 22... Qe8 {[%clk 0:03:12.4]} 23. Bxf7+ {[%clk
0:01:31.9]} 23... Qxf7 {[%clk 0:03:09.6]} 24. Qxa8+ {[%clk 0:01:31]} 24... Qf8
{[%clk 0:03:08.5]} 25. Qxa6 {[%clk 0:01:29.4]} 25... Kh7 {[%clk 0:03:07.3]} 26.
Qxb5 {[%clk 0:01:28.4]} 26... Qd6 {[%clk 0:03:03.8]} 27. Qd3+ {[%clk 0:01:26.4]}
27... Kh8 {[%clk 0:03:00.9]} 28. Rf1 {[%clk 0:01:26.3]} 28... c6 {[%clk
0:02:56.5]} 29. Qf5 {[%clk 0:01:25.2]} 29... Kg8 {[%clk 0:02:52]} 30. Qc8+
{[%clk 0:01:20]} 30... Kh7 {[%clk 0:02:50.1]} 31. Rf8 {[%clk 0:01:19.6]} 31...
Qe7 {[%clk 0:02:42.9]} 32. Qf5+ {[%clk 0:01:14.2]} 32... g6 {[%clk 0:02:37.3]}
33. Rf7+ {[%clk 0:01:13.4]} 33... Qxf7 {[%clk 0:02:35.1]} 34. Qxf7+ {[%clk
0:01:12.7]} 34... Kh8 {[%clk 0:02:33.8]} 35. Qxg6 {[%clk 0:01:12.2]} 35... h5
{[%clk 0:02:30.2]} 36. a4 {[%clk 0:01:10.3]} 36... h4 {[%clk 0:02:28.6]} 37. a5
{[%clk 0:01:10]} 37... c5 {[%clk 0:02:27.9]} 38. a6 {[%clk 0:01:07.1]} 38... c4
{[%clk 0:02:26.9]} 39. Qf6+ {[%clk 0:01:05.8]} 39... Kh7 {[%clk 0:02:25.6]} 40.
a7 {[%clk 0:01:04.8]} 40... Kg8 {[%clk 0:02:24.3]} 41. Qe7 {[%clk 0:01:04.3]}
41... Kh8 {[%clk 0:02:23.1]} 42. a8=R# {[%clk 0:01:03.9]} 1-0

[Event "Live Chess"]
[Site "Chess.com"]
[Date "2023.05.21"]
[Round "-"]
[White "EdenHazard8"]
[Black "LL220284LL"]
[Result "0-1"]
[WhiteElo "1944"]
[BlackElo "2327"]
[TimeControl "300"]
[EndTime "4:19:56 PDT"]
[Termination "LL220284LL won by resignation"]

1. e4 {[%clk 0:04:59.1]} 1... c5 {[%clk 0:04:59]} 2. Nc3 {[%clk 0:04:58.1]} 2...
g6 {[%clk 0:04:57]} 3. f4 {[%clk 0:04:57.5]} 3... Bg7 {[%clk 0:04:55.8]} 4. Nf3
{[%clk 0:04:57.1]} 4... d6 {[%clk 0:04:53.9]} 5. Bb5+ {[%clk 0:04:56.4]} 5...
Bd7 {[%clk 0:04:52.8]} 6. Bxd7+ {[%clk 0:04:53.4]} 6... Qxd7 {[%clk 0:04:51.1]}
7. O-O {[%clk 0:04:53.3]} 7... e6 {[%clk 0:04:50.4]} 8. d3 {[%clk 0:04:52.5]}
8... Ne7 {[%clk 0:04:49.9]} 9. Qe1 {[%clk 0:04:52.1]} 9... Nbc6 {[%clk
0:04:48.2]} 10. Qh4 {[%clk 0:04:51.5]} 10... Nd4 {[%clk 0:04:42.5]} 11. f5
{[%clk 0:04:47.5]} 11... exf5 {[%clk 0:04:37.3]} 12. exf5 {[%clk 0:04:46.2]}
12... Ndxf5 {[%clk 0:04:36]} 13. Qe4 {[%clk 0:04:43.4]} 13... d5 {[%clk
0:04:32.8]} 14. Qg4 {[%clk 0:04:39.2]} 14... O-O {[%clk 0:04:27.1]} 15. Bg5
{[%clk 0:04:34.8]} 15... Rae8 {[%clk 0:04:23.4]} 16. Rae1 {[%clk 0:04:31.9]}
16... h6 {[%clk 0:04:16.1]} 17. Bd2 {[%clk 0:04:25.3]} 17... Nc6 {[%clk
0:04:09.1]} 18. Nh4 {[%clk 0:04:18.7]} 18... Ncd4 {[%clk 0:04:00.7]} 19. Rxe8
{[%clk 0:03:57.8]} 19... Qxe8 {[%clk 0:03:54.3]} 20. Nxf5 {[%clk 0:03:56.7]}
20... Nxf5 {[%clk 0:03:52]} 21. Rxf5 {[%clk 0:03:50.9]} 21... gxf5 {[%clk
0:03:50]} 22. Qg3 {[%clk 0:03:49.5]} 22... Qe6 {[%clk 0:03:45.2]} 0-1

[Event "Live Chess"]
[Site "Chess.com"]
[Date "2023.05.21"]
[Round "-"]
[White "JoshMcK"]
[Black "gmnorfolk"]
[Result "0-1"]
[WhiteElo "1517"]
[BlackElo "2105"]
[TimeControl "300"]
[EndTime "4:20:08 PDT"]
[Termination "gmnorfolk won by resignation"]

1. e4 {[%clk 0:04:57.6]} 1... e5 {[%clk 0:04:57.6]} 2. Nf3 {[%clk 0:04:55.8]}
2... Nc6 {[%clk 0:04:56.9]} 3. Bb5 {[%clk 0:04:54.1]} 3... a6 {[%clk 0:04:53.7]}
4. Ba4 {[%clk 0:04:53]} 4... Nf6 {[%clk 0:04:49.3]} 5. O-O {[%clk 0:04:51.3]}
5... Be7 {[%clk 0:04:48.3]} 6. Re1 {[%clk 0:04:50.4]} 6... b5 {[%clk 0:04:48]}
7. Bb3 {[%clk 0:04:48.6]} 7... O-O {[%clk 0:04:47.6]} 8. d4 {[%clk 0:04:43.2]}
8... Nxd4 {[%clk 0:04:46.2]} 9. Nxd4 {[%clk 0:04:41]} 9... exd4 {[%clk
0:04:45.5]} 10. Qxd4 {[%clk 0:04:39.6]} 10... c5 {[%clk 0:04:44.3]} 11. Qd5
{[%clk 0:04:34.2]} 11... Nxd5 {[%clk 0:04:42.6]} 0-1

[Event "Live Chess"]
[Site "Chess.com"]
[Date "2023.05.21"]
[Round "-"]
[White "JoeyCage"]
[Black "FlorinHristea"]
[Result "1-0"]
[WhiteElo "2290"]
[BlackElo "1814"]
[TimeControl "300"]
[EndTime "4:20:20 PDT"]
[Termination "JoeyCage won by resignation"]

1. e4 {[%clk 0:04:49]} 1... e5 {[%clk 0:04:58.3]} 2. Nf3 {[%clk 0:04:47.7]} 2...
Nc6 {[%clk 0:04:58.2]} 3. Bb5 {[%clk 0:04:46.4]} 3... Bc5 {[%clk 0:04:57.4]} 4.
O-O {[%clk 0:04:45]} 4... d6 {[%clk 0:04:54.6]} 5. c3 {[%clk 0:04:43.6]} 5...
Nf6 {[%clk 0:04:53.6]} 6. d4 {[%clk 0:04:42.5]} 6... Bb6 {[%clk 0:04:46.9]} 7.
d5 {[%clk 0:04:40.1]} 7... a6 {[%clk 0:04:46.4]} 8. Ba4 {[%clk 0:04:38.8]} 8...
O-O {[%clk 0:04:44.4]} 9. dxc6 {[%clk 0:04:35.3]} 9... bxc6 {[%clk 0:04:44.3]}
10. Bxc6 {[%clk 0:04:33.1]} 10... Rb8 {[%clk 0:04:44.2]} 11. Bg5 {[%clk
0:04:30.2]} 11... Bg4 {[%clk 0:04:43.3]} 12. h3 {[%clk 0:04:28.8]} 12... Bh5
{[%clk 0:04:42.2]} 13. g4 {[%clk 0:04:27.4]} 13... Bg6 {[%clk 0:04:41.5]} 14.
Nbd2 {[%clk 0:04:25.5]} 14... Ba7 {[%clk 0:04:37.9]} 15. b4 {[%clk 0:04:22.7]}
15... Rb6 {[%clk 0:04:37.2]} 16. Bd5 {[%clk 0:04:20.6]} 16... c6 {[%clk
0:04:36]} 17. Bxf6 {[%clk 0:04:17.1]} 17... Qxf6 {[%clk 0:04:34.3]} 18. Bb3
{[%clk 0:04:15.9]} 18... Bb8 {[%clk 0:04:31.2]} 19. Qe2 {[%clk 0:04:14.2]} 19...
d5 {[%clk 0:04:29.4]} 20. Kg2 {[%clk 0:04:09]} 20... Qd6 {[%clk 0:04:26.9]} 21.
Rad1 {[%clk 0:04:04.9]} 21... Rd8 {[%clk 0:04:20.6]} 22. a3 {[%clk 0:04:03.4]}
22... Qc7 {[%clk 0:04:19.6]} 23. Ba2 {[%clk 0:03:58.6]} 23... h5 {[%clk
0:04:15.6]} 24. Nh4 {[%clk 0:03:56.7]} 24... hxg4 {[%clk 0:04:13.8]} 25. hxg4
{[%clk 0:03:54.5]} 25... dxe4 {[%clk 0:04:04.7]} 26. Nxe4 {[%clk 0:03:51]} 26...
Rb5 {[%clk 0:03:58.9]} 27. Nxg6 {[%clk 0:03:48.9]} 1-0

[Event "Live Chess"]
[Site "Chess.com"]
[Date "2023.05.21"]
[Round "-"]
[White "Biranidun"]
[Black "smoggyrabbit"]
[Result "1-0"]
[WhiteElo "2533"]
[BlackElo "1690"]
[TimeControl "300"]
[EndTime "4:20:22 PDT"]
[Termination "Biranidun won by resignation"]

1. e4 {[%clk 0:04:58.9]} 1... e6 {[%clk 0:04:58.8]} 2. d4 {[%clk 0:04:58]} 2...
d5 {[%clk 0:04:58]} 3. Nc3 {[%clk 0:04:57.4]} 3... Nf6 {[%clk 0:04:55.8]} 4. e5
{[%clk 0:04:56.6]} 4... Be7 {[%clk 0:04:55]} 5. exf6 {[%clk 0:04:55.5]} 5...
Bxf6 {[%clk 0:04:47.4]} 6. Nf3 {[%clk 0:04:54.7]} 6... O-O {[%clk 0:04:45.5]} 7.
Bd3 {[%clk 0:04:53.7]} 7... c5 {[%clk 0:04:43.3]} 8. dxc5 {[%clk 0:04:52.4]}
8... Nd7 {[%clk 0:04:42]} 9. h4 {[%clk 0:04:51.2]} 9... Nxc5 {[%clk 0:04:41.1]}
10. Bxh7+ {[%clk 0:04:48.5]} 10... Kh8 {[%clk 0:04:23.2]} 11. Bd3 {[%clk
0:04:46.8]} 11... Bxc3+ {[%clk 0:04:20.3]} 12. bxc3 {[%clk 0:04:45.3]} 12... Qf6
{[%clk 0:04:16.7]} 13. Ng5 {[%clk 0:04:39.8]} 13... Qxc3+ {[%clk 0:03:26.7]} 14.
Kf1 {[%clk 0:04:37.8]} 14... g6 {[%clk 0:03:09]} 15. Rb1 {[%clk 0:04:34.9]}
15... b6 {[%clk 0:02:55.2]} 16. Bb2 {[%clk 0:04:34.1]} 1-0